Cogmind - Beta 10.1 @@@ ROGUE MODE // 2021.04.18 @ 19:54:42 Player: Farfid Result: Destroyed self via exploding Vacuum Chamber Performance ------------- Evolutions (7) 3500 Regions Visited (13) 2600 Robots Destroyed (171) 855 Value Destroyed (5362) 5362 Prototype IDs (36) 720 Alien Tech Used (0) 0 Bonus (1509) 1509 TOTAL SCORE: 14546 Bonus ------- High Alert Combat Kills 780 Follower Combat Kills 1065 Aligned with FarCom 300 Friendly Fire -636 Cogmind --------- Core Integrity 0/1300 Matter 96/300 Energy 14/170 System Corruption 10% Temperature Cool (5) Movement Core (1300) Ox25 Location -3/Research Parts ------- > --- POWER (2) -------- Micro Fission Core > --- PROPULSION (7) --- (None) > --- UTILITY (8) ------ High-capacity Storage Unit High-capacity Storage Unit Advanced Terrain Scan Processor Weapon Cycler Improved Hacking Suite > --- WEAPON (4) ------- Improved Proton Missile Launcher > --- INVENTORY (20) --- High-capacity Storage Unit High-capacity Storage Unit High-capacity Matter Pod (200) Advanced Particle Charger Improved Transmission Jammer Focal Shield Mini Drone Bay (3/3) Field Lobotomy Kit Peak State ------------ > --- POWER ------------ Particle Reactor Particle Reactor > --- PROPULSION ------- Heavy Treads Heavy Siege Treads Biometal Medium Treads Wheel Compact Wheel > --- UTILITY ---------- Advanced Coolant Injector High-capacity Storage Unit High-capacity Storage Unit Long-range Terrain Scanner Advanced Terrain Scan Processor Improved Cloaking Device Improved Medium Armor Plating Improved Hacking Suite > --- WEAPON ----------- Improved Heavy Laser Railgun Railgun Enhanced Force Lance > --- INVENTORY -------- Micro Fission Core Biometal Medium Treads Armored Wheel Advanced Coolant Injector High-capacity Storage Unit High-capacity Storage Unit High-capacity Matter Pod Advanced Targeting Computer Energy Filter Advanced Particle Charger Weapon Cycler Improved Transmission Jammer Focal Shield Mini Drone Bay Gamma Rifle Improved Heavy Laser Heavy Wave Gun Improved Proton Missile Launcher Heavy Rocket Launcher Field Lobotomy Kit [Rating: 123] Favorites ----------- Power Angular Momentum Engine Engine Angular Momentum Engine Power Core Micro Fission Core Reactor Light Antimatter Reactor Propulsion Wheel Treads Improved Treads Leg Aluminum Leg Wheel Wheel Hover Unit Aerolev Unit Utility High-capacity Storage Unit Device Long-range Terrain Scanner Storage High-capacity Storage Unit Processor Advanced Terrain Scan Processor Hackware Improved Hacking Suite Protection Improved Medium Armor Plating Weapon Precision Assault Rifle Energy Gun Improved Heavy Laser Energy Cannon Heavy Ion Cannon Ballistic Gun Precision Assault Rifle Launcher Heavy Rocket Launcher Special Weapon Field Lobotomy Kit Impact Weapon Heavy Mace Slashing Weapon Chainsword Piercing Weapon Enhanced Force Lance Build | -11 -10 -10 -9 -9 -9 -8 -8 -7 -6 -5 -5 -4 -3 ------- Run | Scr Mat Min Mat Min Exi Min Mat Fac Fac Fac Ext Fac Res Slots Evolved 14 | . . . 2 . . . 2 2 2 2 . 2 2 Power 1 | . . . . . . . . . 1 . . . . Propulsion 5 | . . . 1 . . . . 1 . 1 . 1 1 Utility 6 | . . . . . . . 2 1 1 1 . 1 . Weapon 2 | . . . 1 . . . . . . . . . 1 Parts Attached 202 | 7 14 1 5 11 2 . 20 16 14 11 43 19 39 Power 23 | 2 1 . 1 1 . . 3 1 1 1 5 1 6 Engine 11 | 2 1 . 1 1 . . 2 1 1 1 1 . . Core 7 | . . . . . . . 1 . . . 3 1 2 Reactor 5 | . . . . . . . . . . . 1 . 4 Propulsion 49 | 2 3 1 3 5 . . 3 7 1 1 11 4 8 Treads 13 | . . . 1 . . . . 2 . . 4 1 5 Leg 1 | . 1 . . . . . . . . . . . . Wheel 34 | 2 2 1 2 5 . . 2 5 1 1 7 3 3 Hover 1 | . . . . . . . 1 . . . . . . Flight . | . . . . . . . . . . . . . . Utility 39 | 1 5 . . 1 1 . 5 2 3 2 7 7 5 Device 16 | . . . . . . . 3 2 1 1 1 3 5 Storage 8 | 1 3 . . . 1 . . . . . 2 1 . Processor 2 | . . . . . . . 2 . . . . . . Hackware 2 | . . . . . . . . . . . 1 1 . Protection 11 | . 2 . . 1 . . . . 2 1 3 2 . Artifact . | . . . . . . . . . . . . . . Weapon 91 | 2 5 . 1 4 1 . 9 6 9 7 20 7 20 Energy Gun 34 | 1 1 . . . . . 3 1 5 2 8 4 9 Energy Cannon 4 | . . . . . . . 2 2 . . . . . Ballistic Gun 28 | 1 4 . 1 3 1 . 3 3 2 2 3 1 4 Ballistic Cannon . | . . . . . . . . . . . . . . Launcher 11 | . . . . 1 . . . . . 1 7 . 2 Special Weapon 3 | . . . . . . . . . . . 1 . 2 Impact Weapon 1 | . . . . . . . . . . . 1 . . Slashing Weapon 7 | . . . . . . . 1 . 2 2 . 2 . Piercing Weapon 3 | . . . . . . . . . . . . . 3 Special Melee Weapon . | . . . . . . . . . . . . . . Unidentified Prototypes 7 | . . . . . . . 2 2 1 . . . 2 Parts Lost 60 | . 6 . 3 1 . . 3 . . . 8 10 29 Power 7 | . 1 . 1 . . . 1 . . . . 1 3 Propulsion 24 | . 2 . 2 1 . . 1 . . . 5 4 9 Utility 8 | . . . . . . . . . . . 2 1 5 Weapon 21 | . 3 . . . . . 1 . . . 1 4 12 Highest Loss Streak 22 | . 3 . 2 1 . . 1 . . . 2 3 22 Average Slot Usage (%) 94 | . 90 100 90 99 99 100 96 99 99 97 97 94 76 Engine 7 | . 13 14 11 11 11 11 8 7 12 11 5 . . Core 1 | . . . . . . . . . . . 4 5 2 Reactor 1 | . . . . . . . . . . . 1 4 4 Treads 5 | . . . . 4 . . . 3 6 5 9 9 9 Wheel 20 | . 22 28 22 27 33 33 26 26 20 21 16 15 9 Device 11 | . . . . . . . 8 14 13 17 15 19 11 Storage 13 | . 18 14 11 11 20 22 18 15 13 11 11 10 9 Processor 4 | . . . . . . . 8 7 6 5 5 5 4 Protection 4 | . 9 14 11 11 . . . . 6 4 4 4 2 Energy Gun 4 | . 3 . . . . . 2 4 8 6 5 9 5 Ballistic Gun 14 | . 18 28 33 32 33 33 17 17 10 8 9 5 6 Naked Turns . | . . . . . . . . . . . . . . Heaviest Build 136 | 12 42 42 47 49 74 74 83 89 111 114 125 116 136 Greatest Support 133 | 20 26 32 44 36 36 36 36 48 36 48 48 46 133 Greatest Overweight (x) 27 | . 2 1 2 2 2 2 3 4 3 3 4 4 27 Average Overweight (x) 2 | . . 1 1 1 1 2 2 1 2 2 2 2 3 Largest Inventory Capacity 26 | 6 12 12 12 12 20 20 20 20 20 20 20 26 20 Average Capacity 18 | 5 9 12 12 12 19 20 20 20 20 20 20 20 20 Most Carried 20 | 4 12 12 12 12 13 13 20 20 20 20 20 20 20 Average Carried 16 | 1 6 11 10 11 12 13 16 18 19 19 19 18 16 Final Capacity 20 | 6 12 12 12 12 20 20 20 20 20 20 20 20 20 Final Carried 20 | 3 12 12 11 12 13 13 20 20 20 20 20 15 8 Class Distribution -------------------- 43% | Scavenger-Skirmisher 14% | Hauler-Skirmisher 7% | Mutant 5% | Scavenger-Mutant 5% | Scavenger-Assassin 5% | Scavenger-Tank 4% | Hauler-Mutant 4% | Commander-Skirmisher 3% | Tank Dominant Class ---------------- Mutant | -10/Materials Mutant | -10/Mines Tank | -9/Materials Scavenger-Tank | -9/Mines Scavenger-Gunner | -9/Exiles Scavenger-Skirmisher | -8/Mines Scavenger-Skirmisher | -8/Materials Scavenger-Skirmisher | -7/Factory Scavenger-Skirmisher | -6/Factory Hauler-Skirmisher | -5/Factory Scavenger-Skirmisher | -5/Extension Scavenger-Skirmisher | -4/Factory Scavenger-Skirmisher | -3/Research Resources | -11 -10 -10 -9 -9 -9 -8 -8 -7 -6 -5 -5 -4 -3 ----------- Run | Scr Mat Min Mat Min Exi Min Mat Fac Fac Fac Ext Fac Res Matter Collected 5414 | 283 374 103 222 603 . 30 629 344 158 406 1258 323 681 Remotely . | . . . . . . . . . . . . . . Salvage Created 8111 | 164 431 215 341 342 . . 400 546 158 294 3199 691 1330 Parts 382 | 11 28 10 24 18 . . 22 35 8 9 118 16 83 Haulers Intercepted 10 | . 1 . 2 . . . . 3 1 1 2 . . Recyclers Shooed 22 | 2 2 1 . 1 . . 2 1 . . 2 4 7 Parts Field Recycled . | . . . . . . . . . . . . . . Retrieved Matter . | . . . . . . . . . . . . . . Parts Self-Destructed . | . . . . . . . . . . . . . . Prevented . | . . . . . . . . . . . . . . Kills | -11 -10 -10 -9 -9 -9 -8 -8 -7 -6 -5 -5 -4 -3 ------- Run | Scr Mat Min Mat Min Exi Min Mat Fac Fac Fac Ext Fac Res Combat Hostiles Destroyed 98 | . 8 2 8 10 . . 8 2 . 2 35 5 18 Melee 4 | . 1 . . . . . . . . . . . 3 Guns 71 | . 7 2 7 10 . . 6 2 . 1 18 4 14 Cannons 2 | . . . . . . . 2 . . . . . . AOE 16 | . . . 1 . . . . . . 1 13 . 1 Classes Destroyed 17 | 2 5 . 2 3 . . . 1 . . 4 . . Worker 14 | . 1 1 . 1 . . . 6 2 . . . 3 Builder 10 | . . . 1 . . . . . . 1 4 . 4 Tunneler 10 | 4 . . . 3 . . . . 1 . . 1 1 Hauler 10 | . 1 . 2 . . . . 3 1 1 2 . . Recycler 13 | 1 1 1 . . . . . 2 . . 5 3 . Mechanic 2 | . . . . . . . . . . . 2 . . Operator 2 | . . . . . . . . . . . 2 . . Watcher 9 | . 3 . 1 . . . 1 1 . 1 2 . . Swarmer 17 | . 5 . 4 . . . 1 . . . 7 . . Grunt 44 | . 3 2 3 2 . . 4 . . 1 21 2 6 Brawler 2 | . . . . 1 . . . . . 1 . . . Sentry 10 | . . . 1 . . . 3 . . . 3 1 2 Demolisher 4 | . . . . 2 . . . . . . 2 . . Hunter 2 | . . . . . . . . . . . 2 . . Programmer 13 | . . . . . . . . 2 . . . 1 10 Assembled 5 | . . . . 5 . . . . . . . . . Thug 2 | . . . . . . . . . . . 1 1 . Savage 1 | . . . . . . . . . . . 1 . . Butcher 1 | . . . . . . . . . . . 1 . . Best Kill Streak 6 | 4 4 3 5 4 . . 3 3 1 2 6 4 5 Combat Bots Only 4 | . 4 1 3 4 . . 3 1 . 2 4 2 4 Max Kills in Single Turn 3 | 1 1 1 1 2 . . 1 1 1 1 3 1 2 Gunslinging 1 | . . . . 1 . . . . . . . . . Exploded 3 | . . . 1 . . . . . . 1 3 . 1 Melee 1 | . 1 . . . . . . . . . . . 1 Uniques/NPCs Destroyed . | . . . . . . . . . . . . . . Combat | -11 -10 -10 -9 -9 -9 -8 -8 -7 -6 -5 -5 -4 -3 -------- Run | Scr Mat Min Mat Min Exi Min Mat Fac Fac Fac Ext Fac Res Damage Taken 11634 | . 746 91 472 488 . . 491 121 51 116 2233 1129 5696 Core 1894 | . 183 18 39 . . . 13 . . 14 153 141 1333 Absorbed by Shields 16 | . . . . . . . . . . . 16 . . Core Remaining (%) 84 | 100 . 19 . . . 90 97 100 100 . 83 87 . Volleys Fired 489 | 13 72 9 31 27 . . 39 33 12 15 123 38 77 Largest 4 | 2 2 2 3 3 . . 3 3 3 3 3 3 4 Hottest 232 | 70 70 46 69 69 . . 135 113 131 121 174 197 232 Shots Fired 1150 | 26 94 18 93 79 . . 91 72 34 36 302 97 208 Gun 1091 | 26 94 18 93 78 . . 82 61 34 32 280 97 196 Cannon 20 | . . . . . . . 9 11 . . . . . Launcher 36 | . . . . 1 . . . . . 4 21 . 10 Special 3 | . . . . . . . . . . . 1 . 2 Kinetic 776 | 13 92 18 93 78 . . 70 54 22 22 181 37 96 Thermal 329 | 13 2 . . . . . 21 18 12 10 99 60 94 Explosive 16 | . . . . 1 . . . . . 4 2 . 9 Electromagnetic 26 | . . . . . . . . . . . 19 . 7 Robot Hit Streak 17 | 5 10 5 13 15 . . 11 16 5 16 17 11 17 Robot Miss Streak 5 | 3 3 1 4 5 . . 3 3 5 1 4 2 3 Penetration Max 1 | . . . . . . . . . . . . . 1 Secondary Targets 13 | . . . 2 1 . . . . . . 5 2 3 Max Gunslinging Chain 1 | . . . 1 1 . . . . . . 1 1 1 Shots Hit Robots 754 | 12 59 14 54 39 . . 58 43 17 26 202 70 160 Core Hits 333 | 6 25 5 16 23 . . 18 19 6 7 122 25 61 Critical Hits 8 | . 1 . . 2 . . . 1 . . . 1 3 Critical Kills 4 | . . . . 1 . . . 1 . . . . 2 Critical Parts Destroyed 3 | . . . . 1 . . . . . . . 1 1 Melee Attacks 84 | . . . . . . . 10 . 3 10 35 6 20 Impact 35 | . . . . . . . . . . . 35 . . Slashing 29 | . . . . . . . 10 . 3 10 . 6 . Piercing 20 | . . . . . . . . . . . . . 20 Sneak Attacks 3 | . . . . . . . . . . 1 . . 2 Combat Hostiles . | . . . . . . . . . . . . . . Follow-up Attacks . | . . . . . . . . . . . . . . Damage Inflicted 18760 | 143 636 257 605 743 . . 857 841 287 645 6482 1911 5353 Guns 14202 | 143 632 257 605 631 . . 723 732 287 504 3909 1911 3868 Cannons 243 | . . . . . . . 134 109 . . . . . Explosions 3484 | . . . . 112 . . . . . 53 2573 . 746 Melee 827 | . . . . . . . . . . 88 . . 739 Ramming 4 | . 4 . . . . . . . . . . . . Kinetic 8353 | 30 606 257 605 631 . . 608 649 181 274 2225 532 1755 Thermal 6337 | 113 26 . . 112 . . 249 192 106 230 1965 1379 1965 Explosive 1089 | . . . . . . . . . . . 349 . 740 Electromagnetic 2150 | . . . . . . . . . . 53 1943 . 154 Impact . | . . . . . . . . . . . . . . Slashing 88 | . . . . . . . . . . 88 . . . Piercing 739 | . . . . . . . . . . . . . 739 Highest Corruption 12 | . 1 1 . . . . . . . 1 2 12 10 Average Corruption 2 | . 1 1 . . . . . . . 1 1 6 5 Corruption Purged . | . . . . . . . . . . . . . . Effects 78 | . 1 1 . . . . . . . 2 26 10 38 Message Errors 14 | . 1 . . . . . . . . 1 5 2 5 Matter Fused 9 | . . . . . . . . . . . . 2 7 Heat Flow Errors 5 | . . . . . . . . . . . 1 . 4 Energy Discharges 7 | . . . . . . . . . . 1 6 . . Parts Rejected 3 | . . . . . . . . . . . . . 3 Data Loss (minor) 11 | . . 1 . . . . . . . . 6 . 4 Alerts 1 | . . . . . . . . . . . . 1 . Misdirections 2 | . . . . . . . . . . . . 2 . Targeting Errors 20 | . . . . . . . . . . . 5 2 13 Weapon Failures 6 | . . . . . . . . . . . 3 1 2 Overload Shots . | . . . . . . . . . . . . . . Overflow Damage 173 | . . . . 15 . . . . . . 44 . 114 Projectiles . | . . . . . . . . . . . . . . Explosions 88 | . . . . 15 . . . . . . 44 . 29 Melee 85 | . . . . . . . . . . . . . 85 Knockbacks . | . . . . . . . . . . . . . . Impact . | . . . . . . . . . . . . . . Kinetic . | . . . . . . . . . . . . . . Secondary . | . . . . . . . . . . . . . . Self-Inflicted Damage 203 | . 1 . . . . . . . . 43 . . 159 Shots 4 | . . . . . . . . . . 1 . . 3 Rammed 2 | . 2 . . . . . . . . . . . . Targets Rammed 3 | . 3 . . . . . . . . . . . . Kicked 1 | . 1 . . . . . . . . . . . . Crushed . | . . . . . . . . . . . . . . Highest Temperature 226 | 70 60 40 122 162 . . 155 40 120 184 196 199 226 Average Temperature 73 | 30 9 15 52 49 . . 37 18 35 70 76 115 112 Received Heat Transfer 2079 | . 198 54 60 . . . 225 . . 18 492 123 909 Siege Activations . | . . . . . . . . . . . . . . Robots Corrupted 4 | . . . . . . . . . . . 4 . . Combat Hostiles 4 | . . . . . . . . . . . 4 . . Parts Fried 9 | . . . . . . . . . . . 9 . . Impact Corruptions . | . . . . . . . . . . . . . . Robots Melted 1 | . . . . . . . . . . . . 1 . Combat Hostiles 1 | . . . . . . . . . . . . 1 . Parts Melted 24 | . . . . . . . . 1 . . 1 8 14 Heat Transferred 8912 | 333 74 . . 150 . . 481 333 237 333 2642 1924 2405 Parts Sabotaged . | . . . . . . . . . . . . . . Parts Stolen . | . . . . . . . . . . . . . . Parts Stripped . | . . . . . . . . . . . . . . Power Chain Reactions 4 | . . . . . . . . . . . 4 . . Missiles Intercepted . | . . . . . . . . . . . . . . Alert | -11 -10 -10 -9 -9 -9 -8 -8 -7 -6 -5 -5 -4 -3 ------- Run | Scr Mat Min Mat Min Exi Min Mat Fac Fac Fac Ext Fac Res Peak Influence 1220 | 25 176 88 264 279 . . 194 91 61 155 1220 833 424 Initial 597 | . 16 28 33 102 . . . 6 14 . 2 597 329 Average 220 | 9 72 48 144 139 . . 65 27 31 43 519 717 275 Maximum Alert Level 4 | . . . 1 1 . . . . . . 4 3 2 Low Security (%) 67 | 100 100 100 81 60 . 100 100 100 100 100 43 . 9 Level 1 15 | . . . 18 39 . . . . . . 8 . 86 Level 2 4 | . . . . . . . . . . . 3 50 3 Level 3 7 | . . . . . . . . . . . 20 49 . Level 4 5 | . . . . . . . . . . . 24 . . Level 5 . | . . . . . . . . . . . . . . High Security . | . . . . . . . . . . . . . . Max Security . | . . . . . . . . . . . . . . Squads Dispatched 22 | . . . 1 . . . . 3 2 1 8 1 6 Investigation 4 | . . . . . . . . 1 1 . 2 . . Extermination 9 | . . . . . . . . 2 1 1 . 1 4 Reinforcement 6 | . . . 1 . . . . . . . 3 . 2 Assault 3 | . . . . . . . . . . . 3 . . Garrison . | . . . . . . . . . . . . . . Intercept . | . . . . . . . . . . . . . . Construction Impeded 4 | . . . . . . . . . . . 3 . 1 Haulers Reinforced . | . . . . . . . . . . . . . . Stealth | -11 -10 -10 -9 -9 -9 -8 -8 -7 -6 -5 -5 -4 -3 --------- Run | Scr Mat Min Mat Min Exi Min Mat Fac Fac Fac Ext Fac Res Distress Signals 12 | . 1 . 1 1 . . 3 . . . 2 . 4 Communications Jammed . | . . . . . . . . . . . . . . Distress Signals . | . . . . . . . . . . . . . . Times Spotted 194 | . 16 3 14 16 . . 14 7 1 4 76 10 33 Peak Tracking Total 10 | . 8 2 4 4 . . 7 1 1 3 10 3 9 Tactical Retreats 18 | . 1 2 3 3 . . 1 . . . 5 1 2 Traps | -11 -10 -10 -9 -9 -9 -8 -8 -7 -6 -5 -5 -4 -3 ------- Run | Scr Mat Min Mat Min Exi Min Mat Fac Fac Fac Ext Fac Res Traps Triggered 12 | . 1 . . . . . . 2 1 1 5 1 1 Indirectly 1 | . . . . . . . . . . . 1 . . Trap Hack Attempts . | . . . . . . . . . . . . . . Triggered . | . . . . . . . . . . . . . . Disarmed . | . . . . . . . . . . . . . . Reprogrammed . | . . . . . . . . . . . . . . Reused . | . . . . . . . . . . . . . . Traps Extracted . | . . . . . . . . . . . . . . Installed . | . . . . . . . . . . . . . . Triggered . | . . . . . . . . . . . . . . Exploded 2 | . . . . . . . . 2 . . . . . Machines | -11 -10 -10 -9 -9 -9 -8 -8 -7 -6 -5 -5 -4 -3 ---------- Run | Scr Mat Min Mat Min Exi Min Mat Fac Fac Fac Ext Fac Res Machines Disabled 16 | . . . . 1 . . 2 . 1 4 3 4 1 Max in Single Turn 2 | . . . . 1 . . 1 . 1 2 1 . 1 Machines Sabotaged . | . . . . . . . . . . . . . . Garrisons Compromised . | . . . . . . . . . . . . . . Overloaded Fab Kills . | . . . . . . . . . . . . . . Fab Network Shutdowns . | . . . . . . . . . . . . . . Hacking | -11 -10 -10 -9 -9 -9 -8 -8 -7 -6 -5 -5 -4 -3 --------- Run | Scr Mat Min Mat Min Exi Min Mat Fac Fac Fac Ext Fac Res Machines Accessed 56 | . 7 . . . 1 . 5 10 9 7 12 2 3 Terminals 41 | . 7 . . . . . 5 9 5 2 11 2 . Fabricators 5 | . . . . . . . . 1 2 1 . . 1 Repair Stations 3 | . . . . . . . . . . 1 1 . 1 Recycling Units 3 | . . . . . . . . . 1 2 . . . Scanalyzers 2 | . . . . . . . . . 1 1 . . . Garrison Access 1 | . . . . . . . . . . . . . 1 Total Hacks 128 | . 23 . . . 1 . 16 22 16 12 30 3 5 Successful 57 | . 11 . . . 1 . 8 8 8 6 12 . 3 Failed 71 | . 12 . . . . . 8 14 8 6 18 3 2 Catastrophic 12 | . 1 . . . . . . 4 3 1 2 . 1 Database Lockouts . | . . . . . . . . . . . . . . Manual 22 | . 3 . . . 1 . 2 5 6 1 . 4 . Terminals 102 | . 23 . . . . . 16 21 8 3 28 3 . Fabricators 6 | . . . . . . . . 1 2 2 . . 1 Repair Stations 7 | . . . . . . . . . . 3 2 . 2 Recycling Units 7 | . . . . . . . . . 4 3 . . . Scanalyzers 3 | . . . . . . . . . 2 1 . . . Garrison Access 2 | . . . . . . . . . . . . . 2 Terminal Hacks 41 | . 10 . . . 1 . 8 6 4 1 11 . . Part Schematic 2 | . 1 . . . . . . . . 1 . . . Robot Analysis 4 | . . . . . . . . 1 1 . 2 . . Prototype ID Bank 3 | . 1 . . . . . 1 1 . . . . . Open Door 3 | . . . . . . . . . . . 3 . . Branch Access Points 2 | . 1 . . . . . . 1 . . . . . Terminal Index 3 | . 1 . . . . . 1 . 1 . . . . Unreport Threat 5 | . 1 . . . . . 2 . . . 2 . . Locate Traps 5 | . 1 . . . . . 2 . . . 2 . . Recall Investigation 2 | . . . . . . . . 1 1 . . . . Recall Reinforcements 1 | . . . . . . . . . . . 1 . . Hauler Manifests 3 | . 2 . . . . . . 1 . . . . . Registered Components 2 | . 1 . . . . . 1 . . . . . . Zone Layout 5 | . 1 . . . . . 1 1 1 . 1 . . EX-Prototype ID Bank 1 | . . . . . 1 . . . . . . . . Fabricator Hacks 4 | . . . . . . . . . 1 2 . . 1 Load Schematic 1 | . . . . . . . . . . 1 . . . Build 3 | . . . . . . . . . 1 1 . . 1 Repair Station Hacks 5 | . . . . . . . . . . 2 1 . 2 Scan Component 3 | . . . . . . . . . . 1 1 . 1 Repair 2 | . . . . . . . . . . 1 . . 1 Recycling Unit Hacks 1 | . . . . . . . . . . 1 . . . Retrieve Matter 1 | . . . . . . . . . . 1 . . . Scanalyzer 1 | . . . . . . . . . 1 . . . . Insert Component 1 | . . . . . . . . . 1 . . . . Garrison Access Hacks . | . . . . . . . . . . . . . . Unauthorized Hacks 5 | . 1 . . . . . . 2 2 . . . . Terminals 3 | . 1 . . . . . . 2 . . . . . Assimilate 1 | . . . . . . . . 1 . . . . . Operators 2 | . 1 . . . . . . 1 . . . . . Fabricators 1 | . . . . . . . . . 1 . . . . Download 1 | . . . . . . . . . 1 . . . . Repair Stations . | . . . . . . . . . . . . . . Recycling Units 1 | . . . . . . . . . 1 . . . . Reject 1 | . . . . . . . . . 1 . . . . Scanalyzers . | . . . . . . . . . . . . . . Garrison Access . | . . . . . . . . . . . . . . Data Cores Recovered 1 | . . . . . . . . . . . 1 . . Used 1 | . . . . . . . . . . . 1 . . Hacking Detections 48 | . 6 . . . . . 5 8 8 6 12 2 1 Full Trace Events 3 | . . . . . . . . 1 . . 2 . . Feedback Events 1 | . . . . . . . . . . . 1 . . Corruption 1 | . . . . . . . . . . . 1 . . Feedback Blocked . | . . . . . . . . . . . . . . Robot Schematics Acquired . | . . . . . . . . . . . . . . Robots Built 2 | . . . . . . . . . . . . . 2 Matter 384 | . . . . . . . . . . . . . 384 Time 68 | . . . . . . . . . . . . . 68 Total Robot Build Rating 16 | . . . . . . . . . . . . . 16 Part Schematics Acquired 2 | . 1 . . . . . . . . 1 . . . Parts Built 3 | . . . . . . . . . 2 1 . . . Matter 468 | . . . . . . . . . 234 234 . . . Time 175 | . . . . . . . . . 58 117 . . . Total Part Build Rating 21 | . . . . . . . . . 14 7 . . . Parts Repaired 2 | . . . . . . . . . . 1 . . 1 Time 75 | . . . . . . . . . . 44 . . 31 Parts Recycled . | . . . . . . . . . . . . . . Recycled Matter . | . . . . . . . . . . . . . . Retrieved Matter . | . . . . . . . . . . . . . . Retrieved Components . | . . . . . . . . . . . . . . Parts Scanalyzed 1 | . . . . . . . . . 1 . . . . Part Schematics Acquired . | . . . . . . . . . . . . . . Parts Damaged . | . . . . . . . . . . . . . . Bothacking | -11 -10 -10 -9 -9 -9 -8 -8 -7 -6 -5 -5 -4 -3 ------------ Run | Scr Mat Min Mat Min Exi Min Mat Fac Fac Fac Ext Fac Res Used RIF Installer . | . . . . . . . . . . . . . . Robots Hacked . | . . . . . . . . . . . . . . Non-combat . | . . . . . . . . . . . . . . Combat . | . . . . . . . . . . . . . . Robot Hacks Applied . | . . . . . . . . . . . . . . Relay Couplers Released . | . . . . . . . . . . . . . . Robots Rewired 18 | . . . . . . . . . 2 . 15 . 1 Allies Hacked . | . . . . . . . . . . . . . . Hacks Repelled . | . . . . . . . . . . . . . . Allies | -11 -10 -10 -9 -9 -9 -8 -8 -7 -6 -5 -5 -4 -3 -------- Run | Scr Mat Min Mat Min Exi Min Mat Fac Fac Fac Ext Fac Res Total Allies 33 | . . . . 3 . . . 1 2 . 22 . 5 Largest Group 10 | . . . . 3 . . . 1 2 2 10 4 2 Highest-Rated Group 327 | . . . . 40 . . . 10 70 70 327 124 128 Highest-Rated Ally 90 | . . . . 16 . . . 10 41 41 81 37 90 Total Orders 4 | . . . . . . . . . . 1 2 1 . STAY 3 | . . . . . . . . . . 1 1 1 . FOLLOW 1 | . . . . . . . . . . . 1 . . Ally Attacks 244 | . . . . 18 . . . . 1 9 164 25 27 Total Damage 5238 | . . . . 126 . . . . 19 163 3058 974 898 Kills 45 | . . . . 4 . . . . . 1 30 6 4 Allies Corrupted 2 | . . . . . . . . . . 1 . . 1 Allies Melted . | . . . . . . . . . . . . . . Field Lobotomies 3 | . . . . . . . . . . . 1 . 2 Intel | -11 -10 -10 -9 -9 -9 -8 -8 -7 -6 -5 -5 -4 -3 ------- Run | Scr Mat Min Mat Min Exi Min Mat Fac Fac Fac Ext Fac Res Robot Analysis Total 4 | . . . . . . . . 1 1 . 2 . . Derelict Logs Recovered 2 | . . 1 . 1 . . . . . . . . . Drone Launches . | . . . . . . . . . . . . . . Drone Recoveries . | . . . . . . . . . . . . . . Exploration | -11 -10 -10 -9 -9 -9 -8 -8 -7 -6 -5 -5 -4 -3 ------------- Run | Scr Mat Min Mat Min Exi Min Mat Fac Fac Fac Ext Fac Res Turns Passed 10652 | 124 647 174 271 671 302 178 907 1574 867 845 2229 583 1280 Spaces Moved 6550 | 87 463 122 144 571 282 157 413 1137 667 477 1232 279 519 Core 19 | 5 . . . . . . . . . . . . 14 Treads 18 | . . . . . . . . . . . . . 18 Legs 56 | . 56 . . . . . . . . . . . . Wheels 6457 | 82 407 122 144 571 282 157 413 1137 667 477 1232 279 487 Hover . | . . . . . . . . . . . . . . Flight . | . . . . . . . . . . . . . . Fastest Speed 50 | 50 80 100 100 90 96 106 106 92 106 107 107 105 105 Average Speed 109 | 78 96 101 111 95 105 106 106 98 109 110 115 110 150 Slowest Speed 1400 | 80 180 110 120 100 106 106 120 120 116 116 135 130 1400 Overloaded Moves . | . . . . . . . . . . . . . . Propulsion Burnouts . | . . . . . . . . . . . . . . Robots Hopped . | . . . . . . . . . . . . . . Cave-ins Triggered 1 | . . . . . . . . . . . . 1 . Exploration Rate (%) 40 | 4 81 36 14 95 69 65 37 29 20 12 88 9 10 Regions Visited 13 Branch Regions 5 Pre-discovered Areas . | . . . . . . . . . . . . . . Known Exits Taken 2 | . 1 . . . . 1 . . . . . . . Unknown Exits Taken 11 | 1 . 1 1 1 1 . 1 1 1 1 1 1 . Scrap Searched 2 | . . . . 1 . 1 . . . . . . . Spaces Dug 80 | . . . . . . . 10 . 3 57 . 6 4 Terrain Destroyed 131 | . . . . 11 . . 13 2 3 57 23 8 14 Melee 30 | . . . . . . . 10 . 3 7 . 6 4 Projectile 9 | . . . . . . . 3 2 . . . 2 2 AOE 92 | . . . . 11 . . . . . 50 23 . 8 Terrain Rammed . | . . . . . . . . . . . . . . Walls Destroyed . | . . . . . . . . . . . . . . Machines Disabled . | . . . . . . . . . . . . . . Actions | -11 -10 -10 -9 -9 -9 -8 -8 -7 -6 -5 -5 -4 -3 --------- Run | Scr Mat Min Mat Min Exi Min Mat Fac Fac Fac Ext Fac Res Total 9131 | 120 588 158 203 649 288 168 801 1542 776 755 1752 485 846 Wait 1407 | 1 8 24 20 32 . 12 285 324 39 233 138 133 158 Move 6537 | 86 462 121 143 570 281 156 412 1136 666 476 1231 278 519 Hop . | . . . . . . . . . . . . . . Pick Up 123 | 11 22 1 4 1 3 . 21 17 8 6 4 7 18 Fast Attach 53 | . . 1 . 8 . . 3 7 7 1 16 2 8 Attach 88 | 7 11 . 5 . 2 . 12 9 1 3 3 11 24 Detach 2 | . . . . . . . . . . . . . 2 Swap 61 | . 3 . . 3 . . 5 . 6 7 24 6 7 Drop 103 | 2 7 2 . 8 2 . 14 16 15 4 18 4 11 Fire 489 | 13 72 9 31 27 . . 39 33 12 15 123 38 77 Melee 84 | . . . . . . . 10 . 3 10 35 6 20 Ram . | . . . . . . . . . . . . . . Kick 3 | . 3 . . . . . . . . . . . . Crush . | . . . . . . . . . . . . . . Escape Stasis 24 | . . . . . . . . . . . 24 . . Rewire 157 | . . . . . . . . . 19 . 136 . 2 Trap . | . . . . . . . . . . . . . . Miscellaneous . | . . . . . . . . . . . . . . Route ------- -11/Scrapyard -10/Materials (discovered 4 exits: [*Mat x2] / *Min x2) -10/Mines -9/Materials (discovered 2 exits: Mat / [*Min]) -9/Mines (discovered 3 exits: *Mat x2 / *Exi) -9/Exiles -8/Mines -8/Materials -7/Factory (discovered 5 exits: *Fac / Sto x2 / *Low x2) -6/Factory -5/Factory -5/Extension (discovered 3 exits: *Fac x2 / [*Cet]) -4/Factory -3/Research (discovered 1 exit: [*Arm]) History --------- Turn | Location | Event 17 | -11/Scrapyard | Discovered new exit (range 15) 125 | -11/Scrapyard | Entered Materials 159 | -10/Materials | Discovered new exit (range 15) 190 | -10/Materials | Identified exit to Mines 310 | -10/Materials | Build established: Mutant 389 | -10/Materials | Core integrity fell below 50% 439 | -10/Materials | Lost 3 parts (1p1n1w) 501 | -10/Materials | Discovered new exit (range 8) 659 | -10/Materials | Discovered new exit (range 15) 772 | -10/Materials | Entered Mines 779 | -10/Mines | Received a Rocket Launcher from a helpful Derelict 823 | -10/Mines | Learned location of 1 exit from Materials 846 | -10/Mines | Core integrity fell below 20% 938 | -10/Mines | Discovered new exit (range 7) 946 | -10/Mines | Entered Materials 946 | -9/Materials | Evolved 2 slots: Propulsion x1, Weapon x1 947 | -9/Materials | Identified exit to Materials 1127 | -9/Materials | Discovered new exit (range 16) 1217 | -9/Materials | Entered Mines 1237 | -9/Mines | Assembled infested the area 1251 | -9/Mines | Build established: Tank 1314 | -9/Mines | Discovered exit to Materials (range 10) 1411 | -9/Mines | Discovered exit to Materials (range 5) 1441 | -9/Mines | Assisted by bots powering up and referring to "LRC-V3" 1661 | -9/Mines | Learned location of 1 exit from Proximity Caves 1662 | -9/Mines | Build established: Scavenger-Tank 1884 | -9/Mines | Deemed a non-threat by the Exiles lab entrance 1884 | -9/Mines | Discovered new exit (range 5) 1888 | -9/Mines | Entered Exiles 1947 | -9/Exiles | Met 8R-AWN 1961 | -9/Exiles | Met EX-HEX 2013 | -9/Exiles | Met EX-DEC 2035 | -9/Exiles | Met EX-BIN 2049 | -9/Exiles | Aligned with FarCom system 2050 | -9/Exiles | Given EX-Vault access code 2075 | -9/Exiles | Opened EX-Vault 2080 | -9/Exiles | Found Field Lobotomy Kit 2101 | -9/Exiles | Warned to stay clear of 0b10 Research branches 2180 | -9/Exiles | Discovered new exit (range 11) 2190 | -9/Exiles | Left Exiles lab with Field Lobotomy Kit 2190 | -9/Exiles | Entered Mines 2357 | -8/Mines | Discovered exit to Materials (range 11) 2368 | -8/Mines | Entered Materials 2368 | -8/Materials | Evolved 2 slots: Utility x2 2966 | -8/Materials | Discovered new exit (range 22) 3275 | -8/Materials | Entered Factory 3275 | -7/Factory | Evolved 2 slots: Propulsion x1, Utility x1 3316 | -7/Factory | Build established: Scavenger-Skirmisher 3703 | -7/Factory | Identified exit to Storage 3703 | -7/Factory | Identified exit to Lower Caves 4746 | -7/Factory | Discovered new exit (range 18) 4849 | -7/Factory | Entered another Factory area 4849 | -6/Factory | Evolved 2 slots: Power x1, Utility x1 5404 | -6/Factory | Fabricated Adv. Coolant Injector (x2) 5572 | -6/Factory | Discovered new exit (range 13) 5709 | -6/Factory | Build established: Hauler-Skirmisher 5716 | -6/Factory | Entered another Factory area 5716 | -5/Factory | Accompanied by 2 allies 5716 | -5/Factory | Evolved 2 slots: Propulsion x1, Utility x1 6078 | -5/Factory | Repaired Imp. Medium Armor Plating 6245 | -5/Factory | Discovered new exit (range 23) 6498 | -5/Factory | Fabricated Imp. Cloaking Device (x1) 6561 | -5/Factory | Entered Extension 6763 | -5/Extension | Rescued a captive Derelict 6765 | -5/Extension | Rescued a captive Derelict 7161 | -5/Extension | Disrupted transfer network 7571 | -5/Extension | Build established: Commander-Skirmisher 7628 | -5/Extension | Spotted B-75 Beast 7642 | -5/Extension | Assimilated B-75 Beast with FLK Orb 7652 | -5/Extension | Discovered new exit (range 24) 7715 | -5/Extension | Spotted B-75 Beast 7727 | -5/Extension | Allies destroyed B-75 Beast 7761 | -5/Extension | First assault squad dispatched 7833 | -5/Extension | Rescued a captive Derelict 7834 | -5/Extension | Rescued a captive Derelict 8032 | -5/Extension | Build established: Scavenger-Skirmisher 8658 | -5/Extension | Rescued a captive Derelict 8659 | -5/Extension | Rescued a captive Derelict 8769 | -5/Extension | Discovered new exit (range 10) 8770 | -5/Extension | Discovered new exit (range 6) 8790 | -5/Extension | Entered Factory 8790 | -4/Factory | Accompanied by 4 allies 8790 | -4/Factory | Evolved 2 slots: Propulsion x1, Utility x1 9071 | -4/Factory | Discovered new exit (range 23) 9166 | -4/Factory | P-70 Sage assimilated allied L0-UWC(g) 9204 | -4/Factory | Lost 3 parts (2n1w) 9315 | -4/Factory | Crushed by falling debris 9315 | -4/Factory | System corruption reached 10% 9346 | -4/Factory | Lost 3 parts (1p2w) 9373 | -4/Factory | Entered Research 9373 | -3/Research | Evolved 2 slots: Propulsion x1, Weapon x1 9459 | -3/Research | Repaired Adv. Coolant Injector 9629 | -3/Research | Discovered new exit (range 13) 9736 | -3/Research | Fabricated Y-72 Warden (x2) 9859 | -3/Research | Found Unknown Piercing Weapon 9859 | -3/Research | Identified Enh. Force Lance 9969 | -3/Research | Lost 3 parts (2n1w) 10305 | -3/Research | System corruption reached 10% 10386 | -3/Research | Core integrity fell below 50% 10434 | -3/Research | Lost 22 parts (2p7n5u8w) 10596 | -3/Research | Assimilated H-77 Assassin with FLK Orb 10604 | -3/Research | Core integrity fell below 20% 10625 | -3/Research | Build established: Hauler-Mutant 10643 | -3/Research | Assimilated P-80 Master with FLK Orb 10653 | -3/Research | Destroyed self via exploding Vacuum Chamber Last Messages --------------- 10616_ Slug penetrates Assassin 8a. 10616_ Assassin 8a suffers critical hit. 10616_ Slug penetrates Wall. 10621_ System corrupted: Adv. Coolant Injector rejected. 10622_ Slug penetrates H-77 Assassin. 10623_ ALERT: Rogue bot located, Programmers report to Research Zone 9W. 10625_ Slug penetrates H-77 Assassin. 10625_ H-77 Assassin destroyed. 10627_ Assassin 8a destroyed. 10634_ R-10 Processor collects Lgt. Antimatter Reactor. 10638_ R-10 Processor collects Myomer Leg. 10643_ P-80 Master assimilated. 10643_ K-01 Serf collects debris. 10649_ System corrupted: Heat flow error (+152). 10649_ Master 8a destroyed. 10650_ Acquired Mic. Fission Core. 10651_ K-01 Serf collects debris. 10652_ P-80 Master resets G-67 Veteran, system corruption cleaned. 10653_ Emergency Access malfunctions. 10653_ Vacuum Chamber explodes. Map ----- +----------------------------------------------------+ | ################## ### ## """"???????????? | | ######## # ### ##? """ ?????????? | | ######## # #####?## ?????????? | | ############# # ######## ? ??????????? | | ############# # ###?#### #????????? | | ######## #######+### ############+#??##???????? | | ######## + ? ?????? | | ######## # ? ? ???? ???? | | ######## # ? ?? ? ? | | ######## + ?? | | # #### ############+######+#########?##? | | # #### ###### # ? ########? | | """# #### ###### # ##?###### | | """# #### ######""" # ? ######### | | R"######### ######""" # """? ######### | | """######### ######""" # """ ######?## | | ######### ###### # """ # # | | =######### ###### # #######?? | | ######### ###### ? # ####### # | | ################+###### #######/?#####?## # | | # ################### ######### # | | # ###### # ######### ? | | # = |###### # #########?# | | # [ + / """[!# #####?###?# | | # # !| ######p| """% # ###?# ? | | # #[ |! ######@% """ # ##### ? | | # ###+################!!= % %# #?### | | # ! ! ############# g % # ##### """ | | # *[ #### """ """ # ##?##? """ | | # ####g """ """ # ###?# ?"" | | # #### !""" """%%# ####? ? | | ######## """"" +[k %+ ##### ? | | ######## ""T""^ # %# ##?#?####+# | | ######## ^ #######+###### ###?##? ? | | ?####### #?### ? | | ######## ?T | | ####?### ? "" | | ######## ! ? ##### | | ###############+############# !%*""" ?"### | | ####?#?##?## ##? #=*! """" "?######## | | ############ ## # """" T"#?##?##? | | ############? ## # """ ""### ? | | #########?## ## # ""#?# ? | | #??######### ## # ? ##### ? | | ##?######### ## ? # ? ###?# ? | | ###?########? ## ? ? ??""? ##?## | | ###?##?###???? ## # ? """" ? ##### ? | | ?##??##?#### ??? #####??## ? ?"?" ###??? ??? | | ? ? ??######?##?###?? ? """ ###?# | | ??? ? ?# ? ?"?? ?#??? ? ? ? ? ?##?## ? ?? | +----------------------------------------------------+ Best States ------------- Heat Dissipation 51 Coolant Potential 100 Energy Generation 41 Energy Capacity 580 Matter Stores 300 Matter Capacity 300 Sight Range 20 Terrain Scan Range 24 Terrain Scan Density 210 Jamming Range 12 Cloak Strength 3 Armor Coverage 225 Weapon Shielding 33 Weapon Cycling 15 Evasion (%) 44 Recoil Reduction 4 Energy Filtering 30 Offensive Hacking 14 Item Schematics ----------------- Wheel | -10/Materials | Hacked Imp. Cloaking Device | -5/Factory | Hacked Robot Schematics ------------------ None Fabricated ------------ Adv. Coolant Injector | x2 | -6/Factory | Preloaded Imp. Cloaking Device | x1 | -5/Factory Y-72 Warden | x2 | -3/Research | Preloaded Alien Tech Used ----------------- None Achievements -------------- None Challenges ------------ None Game ------ Seed SingularityStasisKit Manual? 0 Play Time 02:30:48 Cumulative 95.8 hours Start 2021.04.17 @ 21:18:20 End 2021.04.18 @ 19:54:42 Sessions 5 Manual Loads 0 Difficulty Rogue Special Mode None Game No. 41 Rogue 41 Adventurer 0 Explorer 0 Win Type - Total 0 Types 0/0/0/0/0/0/0/0/0 Lore% 52 Gallery% 60 Achievement% 45 Wizard Run 0 Options --------- ASCII 0 Keyboard 0 Movement Mouse Keybinds 0 Fullscreen 2 Font 12/Smallcaps Map View 83x54 Tactical HUD 1 Map Filters NONE Filters NONE Steam X RUN: 53d42cff-3765-4330-80c0-9848ad81b04a